fUST/lending_fUST_20250606
["ID","MTS","AMOUNT","RATE_DAILY","PERIOD"]
[364591237,1749153806217,-440.0,0.00019213,2]
[364591238,1749153806240,-440.0,0.00019213,2]
[364591239,1749153806263,-440.0,0.00019213,2]
[364591240,1749153806284,-168.15921409,0.00019451,2]
[364591241,1749153806307,-1081.95,0.00019451,2]
[364591242,1749153806329,-430.0,0.00019451,2]
[364591243,1749153806353,-477.62,0.00019451,2]
[364591244,1749153806497,-440.0,0.00019451,2]
[364591245,1749153806523,-440.0,0.00019451,2]
[364591246,1749153806547,-562.29,0.00019451,2]
[364591247,1749153806569,-440.0,0.00019451,2]
[364591248,1749153806593,-440.0,0.00019451,2]
[364591249,1749153806617,-440.0,0.00019451,2]
[364591250,1749153806642,-419.38,0.00019452,2]
[364591251,1749153806668,-440.0,0.00019452,2]
[364591252,1749153806693,-440.0,0.00019452,2]
[364591253,1749153806718,-440.0,0.00019487,2]
[364591254,1749153806743,-440.0,0.00019487,2]
[364591255,1749153806766,-440.0,0.00019487,2]
[364591256,1749153806790,-440.0,0.00019487,2]
[364591257,1749153806816,-440.0,0.00019487,2]
[364591258,1749153806843,-440.0,0.00019487,2]
[364591259,1749153806868,-440.0,0.00019487,2]
[364591260,1749153806895,-431.73,0.00019487,2]
[364591261,1749153806919,-410.0,0.00019487,2]
[364591262,1749153806942,-229.48950782,0.00019681,2]
[364591263,1749153806964,-842.5625,0.00019681,2]
[364591264,1749153806987,-160.0,0.00019681,2]
[364591265,1749153807010,-423.7637613,0.00019681,2]
[364591266,1749153807034,-212.94059491,0.00019681,2]
[364591267,1749153807060,-1081.95,0.00019725,2]
[364591268,1749153807085,-477.62,0.00019725,2]
[364591269,1749153807109,-280.57,0.00019725,2]
[364591270,1749153807133,-440.0,0.00019725,2]
[364591271,1749153807158,-562.29,0.00019725,2]
[364591272,1749153807183,-440.0,0.00019725,2]
[364591273,1749153807208,-440.0,0.00019725,2]
[364591274,1749153807231,-440.0,0.00019726,2]
[364591275,1749153807256,-440.0,0.00019726,2]
[364591276,1749153807278,-440.0,0.00019761,2]
[364591277,1749153807304,-440.0,0.00019761,2]
[364591278,1749153807327,-410.0,0.00019761,2]
[364591279,1749153807352,-168.53,0.00019761,2]
[364591280,1749153807378,-440.0,0.00019761,2]
[364591281,1749153807403,-440.0,0.00019761,2]
[364591282,1749153807427,-440.0,0.00019761,2]
[364591283,1749153807452,-1081.95,0.00019999,2]
[364591284,1749153807477,-477.62,0.00019999,2]
[364591285,1749153807502,-440.0,0.00019999,2]
[364591286,1749153807527,-562.29,0.00019999,2]
[364591287,1749153807551,-440.0,0.00019999,2]
[364591288,1749153807575,-440.0,0.00019999,2]
[364591289,1749153807599,-440.0,0.0002,2]
[364591290,1749153807624,-184.42,0.0002,2]
[364591291,1749153807732,150.0,0.00017266,2]
[364591292,1749153807989,167.56,0.00018836,2]
[364591293,1749153813265,829.0,0.00019451,2]
[364591294,1749153813544,829.0,0.00019725,2]
[364591295,1749153813797,829.0,0.00019999,2]
[364591296,1749153836235,440.0,0.00018356,2]
[364591297,1749153836488,440.0,0.0001863,2]
[364591298,1749153836744,440.0,0.00018904,2]
[364591299,1749153837043,440.0,0.00019178,2]
[364591300,1749153837294,440.0,0.00019452,2]
[364591301,1749153837540,381.2,0.00019726,2]
[364591302,1749153846227,184.477963,0.00018706,2]
[364591303,1749153855412,440.0,0.00018356,2]
[364591304,1749153855656,440.0,0.0001863,2]
[364591305,1749153855898,440.0,0.00018904,2]
[364591306,1749153856139,440.0,0.00019178,2]
[364591307,1749153856389,440.0,0.00019452,2]
[364591308,1749153856698,440.0,0.00019726,2]
[364591309,1749153856968,440.0,0.0002,2]
[364591310,1749153860343,440.0,0.00018356,2]
[364591311,1749153860623,410.0,0.0001863,2]
[364591312,1749153881558,150.0,0.00017271,2]
[364591313,1749153882035,164.1,0.00018842,2]
[364591314,1749153882229,440.0,0.00018899,2]
[364591316,1749153898931,440.0,0.00018356,2]
[364591317,1749153899183,151.44,0.0001863,2]
[364591319,1749153901661,440.0,0.00019212,2]
[364591320,1749153928653,440.0,0.00019451,2]
[364591321,1749153928896,440.0,0.00019725,2]
[364591322,1749153929139,440.0,0.00019999,2]
[364591323,1749153935126,1022.56,0.00019212,2]
[364591324,1749153935384,1022.56,0.00019486,2]
[364591325,1749153935639,1022.56,0.0001976,2]
[364591326,1749153948110,440.0,0.00019212,2]
[364591327,1749153948380,440.0,0.00019486,2]
[364591328,1749153948646,440.0,0.0001976,2]
[364591329,1749153952083,-192.21473885,0.00020033,2]
[364591330,1749153956373,150.0,0.00016463,2]
[364591331,1749153956859,152.67,0.00017247,2]
[364591332,1749153957388,229.01,0.00018031,2]
[364591333,1749153957844,305.35,0.00018814,2]
[364591334,1749153958324,381.68,0.00019598,2]
[364591335,1749153963980,512.36518735,0.00019212,2]
[364591336,1749153967770,440.0,0.00019212,2]
[364591337,1749153976972,476.19574312,0.00019451,2]
[364591338,1749153978370,400.0,0.00019212,2]
[364591339,1749153979843,430.0,0.00019451,2]
[364591340,1749153980136,105.68764699,0.00019212,2]
[364591341,1749153980160,324.31235301,0.00019212,2]
[364591342,1749153985216,430.0,0.00019451,2]
[364591343,1749153988708,430.0,0.00019451,2]
[364591344,1749153993350,430.0,0.00019212,2]
[364591345,1749153994413,440.0,0.00019212,2]
[364591346,1749153994681,440.0,0.00019486,2]
[364591347,1749153994978,440.0,0.0001976,2]
[364591348,1749153995432,202.81813816,0.00019451,2]
[364591349,1749153997169,613.12,0.00019212,2]
[364591350,1749153997426,613.12,0.00019486,2]
[364591351,1749153997680,613.12,0.0001976,2]
[364591352,1749153999024,276.66967444,0.00019451,2]
[364591353,1749154003200,323.87678373,0.00019451,2]
[364591354,1749154003481,440.0,0.00019212,2]
[364591355,1749154004218,159.358096,0.00013699,2]
[364591356,1749154008267,226.80727925,0.00019451,2]
[364591357,1749154008801,440.0,0.00019212,2]
[364591358,1749154009071,440.0,0.00019486,2]
[364591359,1749154009330,440.0,0.0001976,2]
[364591361,1749154010091,430.0,0.00019212,2]
[364591362,1749154010680,400.0,0.00019212,2]
[364591363,1749154014104,430.0,0.00019212,2]
[364591364,1749154017048,440.0,0.00019451,2]
[364591365,1749154017326,410.0,0.00019725,2]
[364591366,1749154026138,440.0,0.00019451,2]
[364591367,1749154028008,440.0,0.00019212,2]
[364591368,1749154028193,150.0,0.00016448,2]
[364591369,1749154028514,440.0,0.00019486,2]
[364591370,1749154028595,440.0,0.0001976,2]
[364591371,1749154028674,150.0,0.00017232,2]
[364591372,1749154028872,604.99,0.00018356,2]
[364591373,1749154029109,-107.78526115,0.00020033,2]
[364591374,1749154029129,-48.43858269,0.00020033,2]
[364591375,1749154029211,181.05,0.00018015,2]
[364591376,1749154029251,604.99,0.0001863,2]
[364591377,1749154029503,604.99,0.00018904,2]
[364591378,1749154029692,241.4,0.00018798,2]
[364591379,1749154029756,604.99,0.00019178,2]
[364591380,1749154030008,604.99,0.00019452,2]
[364591381,1749154030177,301.74,0.00019581,2]
[364591382,1749154030258,604.99,0.00019726,2]
[364591383,1749154030577,604.99,0.0002,2]
[364591384,1749154032130,-251.56141731,0.00020033,2]
[364591385,1749154032156,-300.0,0.00020034,2]
[364591386,1749154032178,-1200.0,0.00020034,2]
[364591387,1749154032199,-300.0,0.00020034,2]
[364591388,1749154032220,-188.43467807,0.00020034,2]
[364591389,1749154035093,-111.56532193,0.00020034,2]
[364591390,1749154035118,-393.20825746,0.00020034,2]
[364591391,1749154061933,725.37,0.00019212,2]
[364591392,1749154062195,725.37,0.00019486,2]
[364591393,1749154062681,725.37,0.0001976,2]
[364591394,1749154065083,440.0,0.00019451,2]
[364591395,1749154065340,440.0,0.00019725,2]
[364591396,1749154065583,440.0,0.00019999,2]
[364591399,1749154080770,24900.0,0.0001979,2]
[364591400,1749154083114,207.02971905,0.00019212,2]
[364591401,1749154088433,425.41449721,0.00018356,2]
[364591402,1749154092872,430.0,0.00019212,2]
[364591403,1749154097464,440.0,0.00019212,2]
[364591404,1749154098043,430.0,0.00019212,2]
[364591405,1749154100425,430.0,0.00019212,2]
[364591406,1749154100904,150.0,0.00016452,2]
[364591407,1749154101515,150.0,0.00017236,2]
[364591408,1749154102008,150.0,0.00018019,2]
[364591409,1749154102273,430.0,0.00019212,2]
[364591410,1749154102954,166.91,0.00018803,2]
[364591411,1749154103445,208.64,0.00019586,2]
[364591412,1749154103496,440.0,0.00019212,2]
[364591413,1749154103955,430.0,0.00019451,2]
[364591414,1749154104069,430.0,0.00019212,2]
[364591415,1749154104620,430.0,0.00019212,2]
[364591416,1749154106356,440.0,0.00019451,2]
[364591417,1749154106546,440.0,0.00019212,2]
[364591418,1749154106774,424.67400137,0.00019486,2]
[364591419,1749154107430,345.91,0.00018356,2]
[364591420,1749154108822,401.11648652,0.00019212,2]
[364591421,1749154113936,81.82213793,0.00019212,2]
[364591422,1749154113963,358.17786207,0.00019212,2]
[364591423,1749154114175,420.0,0.00019486,2]
[364591424,1749154114912,440.0,0.00019212,2]
[364591425,1749154115161,156.73599795,0.00019486,2]
[364591426,1749154115565,372.19647254,0.00019212,2]
[364591427,1749154117581,430.0,0.00019212,2]
[364591428,1749154119652,430.0,0.00019212,2]
[364591429,1749154119911,440.0,0.00018356,2]
[364591430,1749154120186,440.0,0.0001863,2]
[364591431,1749154120445,440.0,0.00018904,2]
[364591432,1749154121018,323.19778501,0.00019178,2]
[364591433,1749154121425,430.0,0.00019212,2]
[364591434,1749154123326,400.0,0.00019212,2]
[364591435,1749154124556,150.0,0.000189,2]
[364591436,1749154127380,440.0,0.00019212,2]
[364591437,1749154127740,440.0,0.00019486,2]
[364591438,1749154127989,440.0,0.0001976,2]
[364591439,1749154129137,420.0,0.00019212,2]
[364591440,1749154135083,440.0,0.00019212,2]
[364591441,1749154135336,440.0,0.00019486,2]
[364591442,1749154135708,440.0,0.0001976,2]
[364591443,1749154136290,440.0,0.00019451,2]
[364591444,1749154136541,440.0,0.00019725,2]
[364591445,1749154137063,430.0,0.00019212,2]
[364591446,1749154138379,440.0,0.00019212,2]
[364591447,1749154138644,440.0,0.00019486,2]
[364591449,1749154138887,440.0,0.0001976,2]
[364591451,1749154146166,-300.0,0.00020033,2]
[364591452,1749154146191,-202.45593212,0.00020034,2]
[364591453,1749154146349,430.0,0.00019212,2]
[364591454,1749154149194,440.0,0.00019212,2]
[364591455,1749154149466,440.0,0.00019486,2]
[364591456,1749154149749,440.0,0.0001976,2]
[364591457,1749154152153,-315.01552021,0.00020034,2]
[364591458,1749154152179,-629.35174254,0.00020034,2]
[364591459,1749154152208,-440.0,0.00020034,2]
[364591460,1749154152234,-440.0,0.00020034,2]
[364591461,1749154152260,-613.12,0.00020034,2]
[364591462,1749154152287,-440.0,0.00020034,2]
[364591463,1749154152314,-440.0,0.00020034,2]
[364591464,1749154152340,-725.37,0.00020034,2]
[364591465,1749154152364,-214.65336325,0.00020034,2]
[364591466,1749154152390,-589.62,0.00020034,2]
[364591467,1749154152414,-440.0,0.00020034,2]
[364591468,1749154152438,-440.0,0.00020034,2]
[364591469,1749154152462,-160.0,0.00020035,2]
[364591470,1749154152626,-346.7516383,0.00020035,2]
[364591471,1749154152648,-212.94059491,0.00020035,2]
[364591472,1749154152672,-160.0,0.00020035,2]
[364591473,1749154152695,-229.48950782,0.00020035,2]
[364591474,1749154152716,-440.0,0.00020035,2]
[364591475,1749154152738,-440.0,0.00020035,2]
[364591476,1749154152762,-444.13,0.00020035,2]
[364591477,1749154152782,-1916.97201324,0.00020035,2]
[364591478,1749154152805,-159.358096,0.00020187,2]
[364591479,1749154152832,-440.0,0.00020273,2]
[364591480,1749154152857,-604.99,0.00020273,2]
[364591481,1749154152880,-440.0,0.00020273,2]
[364591482,1749154152903,-699.85101926,0.00020308,2]
[364591483,1749154153266,440.0,0.00019451,2]
[364591484,1749154153523,440.0,0.00019725,2]
[364591485,1749154155990,440.0,0.00019451,2]
[364591486,1749154156265,440.0,0.00019725,2]
[364591487,1749154157035,430.0,0.00019451,2]
[364591488,1749154160655,440.0,0.00019212,2]
[364591489,1749154160834,440.0,0.00019486,2]
[364591490,1749154161082,440.0,0.0001976,2]
[364591491,1749154162874,420.0,0.00019212,2]
[364591492,1749154164888,440.0,0.00019212,2]
[364591493,1749154165142,440.0,0.00019486,2]
[364591494,1749154165404,440.0,0.0001976,2]
[364591495,1749154169670,440.0,0.00018356,2]
[364591496,1749154170100,-392.77,0.00020034,2]
[364591497,1749154170122,-440.0,0.00020034,2]
[364591498,1749154170156,-322.70898074,0.00020308,2]
[364591499,1749154170180,-440.0,0.00020308,2]
[364591500,1749154170203,-440.0,0.00020308,2]
[364591501,1749154170225,-613.12,0.00020308,2]
[364591502,1749154170250,-440.0,0.00020308,2]
[364591503,1749154170273,-440.0,0.00020308,2]
[364591504,1749154170297,-725.37,0.00020308,2]
[364591505,1749154170317,-247.92707495,0.00020308,2]
[364591506,1749154170339,-241.31285619,0.00020308,2]
[364591507,1749154170371,440.0,0.0001863,2]
[364591508,1749154170514,440.0,0.00018904,2]
[364591509,1749154170865,440.0,0.00019178,2]
[364591510,1749154171085,440.0,0.00019452,2]
[364591511,1749154171394,440.0,0.00019726,2]
[364591512,1749154171631,440.0,0.0002,2]
[364591513,1749154172676,440.0,0.00019451,2]
[364591514,1749154172943,440.0,0.00019725,2]
[364591515,1749154173821,150.0,0.00016456,2]
[364591516,1749154174323,150.0,0.0001724,2]
[364591517,1749154174792,150.0,0.00018023,2]
[364591518,1749154174849,430.0,0.00019451,2]
[364591519,1749154175267,152.37,0.00018807,2]
[364591520,1749154175963,440.0,0.00019451,2]
[364591521,1749154176183,190.46,0.00019591,2]
[364591522,1749154176220,440.0,0.00019725,2]
[364591523,1749154177342,440.0,0.00019212,2]
[364591524,1749154177631,440.0,0.00019486,2]
[364591525,1749154177901,440.0,0.0001976,2]
[364591526,1749154181134,440.0,0.00019212,2]
[364591527,1749154181498,431.7382822,0.00019212,2]
[364591528,1749154181538,440.0,0.00019486,2]
[364591529,1749154181833,374.14959396,0.0001976,2]
[364591530,1749154184464,171.84252954,0.00019212,2]
[364591531,1749154187186,420.0,0.00019212,2]
[364591532,1749154194446,420.0,0.00019212,2]
[364591533,1749154196777,420.0,0.00019212,2]
[364591534,1749154196848,420.0,0.00019212,2]
[364591536,1749154198831,1295.23,0.00019212,2]
[364591537,1749154199340,1295.23,0.00019486,2]
[364591538,1749154199608,1295.23,0.0001976,2]
[364591539,1749154205224,420.0,0.00019212,2]
[364591540,1749154209585,440.0,0.00019212,2]
[364591541,1749154209810,440.0,0.00019486,2]
[364591542,1749154210055,440.0,0.0001976,2]
[364591543,1749154210481,430.0,0.00019212,2]
[364591544,1749154215439,440.0,0.00019451,2]
[364591545,1749154217587,472.91,0.00019212,2]
[364591546,1749154217847,472.91,0.00019486,2]
[364591547,1749154218218,472.91,0.0001976,2]
[364591548,1749154220691,362.80588903,0.00018939,2]
[364591549,1749154221223,430.0,0.00019451,2]
[364591550,1749154221686,756.85,0.00019212,2]
[364591551,1749154221947,756.85,0.00019486,2]
[364591552,1749154222246,756.85,0.0001976,2]
[364591553,1749154224674,440.0,0.00019451,2]
[364591554,1749154225091,440.0,0.00019725,2]
[364591555,1749154225335,440.0,0.00019999,2]
[364591556,1749154226480,440.0,0.00019451,2]
[364591557,1749154226730,496.39,0.00019725,2]
[364591558,1749154229340,430.0,0.00019451,2]
[364591596,1749154231841,579.44253786,0.00019212,2]
[364591597,1749154233230,420.0,0.00019212,2]
[364591598,1749154234200,440.0,0.00019212,2]
[364591599,1749154234509,440.0,0.00019486,2]
[364591600,1749154234796,440.0,0.0001976,2]
[364591601,1749154235833,440.0,0.00019212,2]
[364591602,1749154236127,420.0,0.00019486,2]
[364591603,1749154236346,583.3,0.00019212,2]
[364591649,1749154237269,-440.0,0.00020034,2]
[364591652,1749154237281,-1295.23,0.00020034,2]
[364591655,1749154237294,-440.0,0.00020034,2]
[364591657,1749154237304,-472.91,0.00020034,2]
[364591660,1749154237314,-756.85,0.00020034,2]
[364591662,1749154237323,-400.0,0.00020034,2]
[364591664,1749154237332,-440.0,0.00020273,2]
[364591666,1749154237342,-242.0,0.00020307,2]
[364591668,1749154237351,-300.0,0.00020307,2]
[364591670,1749154237361,-198.68714381,0.00020308,2]
[364591672,1749154237371,-440.0,0.00020308,2]
[364591674,1749154237381,-440.0,0.00020308,2]
[364591678,1749154237390,-1295.23,0.00020308,2]
[364591679,1749154237399,-440.0,0.00020308,2]
[364591683,1749154237409,-472.91,0.00020308,2]
[364591685,1749154237418,-756.85,0.00020308,2]
[364591687,1749154237428,-440.0,0.00020309,2]
[364591689,1749154237438,-228.55,0.00020374,2]
[364591691,1749154237447,-500.0,0.00020488,2]
[364591693,1749154237456,-1200.0,0.00020546,2]
[364591695,1749154237466,-300.0,0.00020546,2]
[364591696,1749154237475,-300.0,0.00020546,2]
[364591699,1749154237485,-604.99,0.00020547,2]
[364591701,1749154237496,-197.58,0.00020547,2]
[364591703,1749154237507,-440.0,0.00020547,2]
[364591705,1749154237516,-440.0,0.00020582,2]
[364591706,1749154237526,-540.90235429,0.00020582,2]
[364591708,1749154237539,-440.0,0.00020582,2]
[364591710,1749154237549,-725.37,0.00020582,2]
[364591711,1749154237562,-390.0,0.00020582,2]
[364591713,1749154237571,-160.0,0.00020582,2]
[364591714,1749154237581,-440.0,0.00020582,2]
[364591715,1749154237591,-272.24227725,0.00020582,2]
[364591717,1749154237604,-167.75772275,0.00020582,2]
[364591718,1749154237615,-1295.23,0.00020582,2]
[364591719,1749154237629,-440.0,0.00020582,2]
[364591720,1749154237639,-472.91,0.00020582,2]
[364591721,1749154237649,-756.85,0.00020582,2]
[364591722,1749154237659,-440.0,0.00020583,2]
[364591723,1749154237669,-604.99,0.00020821,2]
[364591724,1749154237679,-440.0,0.00020821,2]
[364591725,1749154237689,-440.0,0.00020856,2]
[364591726,1749154237699,-440.0,0.00020856,2]
[364591727,1749154237709,-725.37,0.00020856,2]
[364591728,1749154237719,-279.56,0.00020856,2]
[364591729,1749154237728,-440.0,0.00020856,2]
[364591730,1749154237738,-1295.23,0.00020856,2]
[364591731,1749154237748,-376.74,0.00020856,2]
[364591732,1749154237758,-472.91,0.00020856,2]
[364591733,1749154237767,-756.85,0.00020856,2]
[364591734,1749154237777,-440.0,0.00020857,2]
[364591735,1749154237789,-530.64551449,0.0002103,2]
[364591736,1749154237800,-500.0,0.0002104,2]
[364591737,1749154237810,-500.0,0.0002104,2]
[364591738,1749154237820,-604.99,0.00021095,2]
[364591739,1749154237831,-440.0,0.00021095,2]
[364591740,1749154237840,-440.0,0.0002113,2]
[364591741,1749154237851,-440.0,0.0002113,2]
[364591742,1749154237861,-725.37,0.0002113,2]
[364591743,1749154237871,-440.0,0.0002113,2]
[364591744,1749154237881,-1295.23,0.0002113,2]
[364591745,1749154237890,-472.91,0.0002113,2]
[364591747,1749154237900,-756.85,0.0002113,2]
[364591748,1749154237911,-440.0,0.00021131,2]
[364591749,1749154237921,-266.65,0.00021158,2]
[364591750,1749154237933,-604.99,0.00021369,2]
[364591752,1749154237944,-440.0,0.00021369,2]
[364591754,1749154237954,-154.56609765,0.00021369,2]
[364591756,1749154237964,-440.0,0.00021404,2]
[364591757,1749154237978,-399.44,0.00021404,2]
[364591758,1749154237987,-725.37,0.00021404,2]
[364591759,1749154237997,-440.0,0.00021404,2]
[364591761,1749154238008,-1295.23,0.00021404,2]
[364591762,1749154238020,-472.91,0.00021404,2]
[364591763,1749154238032,-756.85,0.00021404,2]
[364591764,1749154238042,-335.36280988,0.00021405,2]
[364591765,1749154238054,-530.64551447,0.00021481,2]
[364591766,1749154238065,-10611.31879,0.00021556,2]
[364591767,1749154238074,-501.63539255,0.00021557,2]
[364591768,1749154238084,-500.0,0.00021557,2]
[364591769,1749154238093,-604.99,0.00021643,2]
[364591770,1749154238103,-440.0,0.00021643,2]
[364591771,1749154238113,-440.0,0.00021678,2]
[364591772,1749154238122,-725.37,0.00021678,2]
[364591773,1749154238131,-440.0,0.00021678,2]
[364591774,1749154238140,-1295.23,0.00021678,2]
[364591775,1749154238150,-472.91,0.00021678,2]
[364591776,1749154238159,-756.85,0.00021678,2]
[364591777,1749154238169,-420.0,0.00021813,2]
[364591778,1749154238178,-1789.51274175,0.000219,6]
[364591779,1749154238187,-540.92288429,0.00021917,2]
[364591780,1749154238198,-604.99,0.00021917,2]
[364591781,1749154238209,-440.0,0.00021917,2]
[364591782,1749154238219,-530.64551447,0.00021932,2]
[364591783,1749154238230,-304.74,0.00021942,2]
[364591784,1749154238239,-440.0,0.00021952,2]
[364591785,1749154238249,-725.37,0.00021952,2]
[364591786,1749154238259,-160.0,0.00021952,2]
[364591787,1749154238269,-395.94,0.00021952,2]
[364591788,1749154238279,-1295.23,0.00021952,2]
[364591789,1749154238291,-472.91,0.00021952,2]
[364591790,1749154238301,-756.85,0.00021952,2]
[364591791,1749154238311,-177.0,0.00022,2]
[364591792,1749154238320,-152.0,0.00022,2]
[364591793,1749154238330,-188.0,0.00022,2]
[364591794,1749154238340,-1789.51274162,0.00022003,6]
[364591795,1749154238349,-407.0,0.00022105,2]
[364591796,1749154238359,-1789.51274162,0.00022107,6]
[364591797,1749154238369,-500.0,0.00022181,2]
[364591798,1749154238378,-604.99,0.00022191,2]
[364591799,1749154238387,-454.35,0.00022191,2]
[364591800,1749154238397,-1475.03733105,0.000222,69]
[364591801,1749154238406,-1475.03733102,0.000222,69]
[364591802,1749154238415,-1475.03733102,0.000222,69]
[364591803,1749154238425,-1789.51274162,0.0002221,6]
[364591804,1749154238434,-440.0,0.00022226,2]
[364591805,1749154238443,-725.37,0.00022226,2]
[364591806,1749154238452,-1295.23,0.00022226,2]
[364591807,1749154238461,-472.91,0.00022226,2]
[364591808,1749154238470,-756.85,0.00022226,2]
[364591809,1749154238479,-4960.1544,0.00022261,2]
[364591810,1749154238487,-1789.51274162,0.00022314,7]
[364591811,1749154238496,-420.0,0.0002236,2]
[364591812,1749154238506,-530.64551447,0.00022383,2]
[364591813,1749154238515,-1789.51274162,0.00022417,7]
[364591814,1749154238523,-604.99,0.00022465,2]
[364591815,1749154238535,-1680.0,0.00022467,2]
[364591816,1749154238544,-440.0,0.000225,2]
[364591817,1749154238553,-725.37,0.000225,2]
[364591818,1749154238562,-1295.23,0.000225,2]
[364591819,1749154238571,-472.91,0.000225,2]
[364591820,1749154238580,-756.85,0.000225,2]
[364591821,1749154238589,-1789.51274162,0.00022521,7]
[364591822,1749154238598,-590.95,0.00022614,10]
[364591823,1749154238607,-1789.51274162,0.00022624,7]
[364591824,1749154238616,-709.15,0.00022674,10]
[364591825,1749154238625,-500.0,0.0002268,2]
[364591826,1749154238635,-1003.98943177,0.00022684,2]
[364591827,1749154238643,-4512.37218656,0.00022684,2]
[364591828,1749154238652,-207.4,0.00022684,2]
[364591829,1749154238661,-342.83,0.00022725,2]
[364591830,1749154238670,-1789.51274162,0.00022728,7]
[364591831,1749154238679,-500.0,0.00022729,3]
[364591832,1749154238688,-604.99,0.00022739,2]
[364591833,1749154238697,-850.98,0.00022764,10]
[364591834,1749154238706,-440.0,0.00022774,2]
[364591835,1749154238715,-725.37,0.00022774,2]
[364591836,1749154238724,-1295.23,0.00022774,2]
[364591837,1749154238733,-472.91,0.00022774,2]
[364591838,1749154238741,-756.85,0.00022774,2]
[364591839,1749154238751,-1789.51274162,0.00022831,8]
[364591840,1749154238760,-530.64551447,0.00022834,2]
[364591841,1749154238769,-200.17537172,0.00022898,2]
[364591842,1749154238778,-1789.51274162,0.00022934,8]
[364591843,1749154238790,-328.47578549,0.00023,2]
[364591844,1749154238799,-604.99,0.00023013,2]
[364591845,1749154238808,-1789.51274162,0.00023038,8]
[364591846,1749154238817,-440.0,0.00023048,2]
[364591847,1749154238826,-725.37,0.00023048,2]
[364591848,1749154238836,-1295.23,0.00023048,2]
[364591849,1749154238845,-472.91,0.00023048,2]
[364591850,1749154238855,-756.85,0.00023048,2]
[364591851,1749154238865,-200.62794978,0.00023108,7]
[364591852,1749154238874,-1475.03733102,0.00023124,73]
[364591853,1749154238884,-1789.51274162,0.00023141,8]
[364591854,1749154238893,-1344.98,0.000232,7]
[364591855,1749154238903,-1789.51274162,0.00023245,8]
[364591856,1749154238913,-500.0,0.00023277,4]
[364591857,1749154238923,-530.64551447,0.00023285,2]
[364591858,1749154238932,-604.99,0.00023287,2]
[364591859,1749154238942,-1458.93,0.000233,2]
[364591860,1749154238951,-438.43,0.00023322,2]
[364591861,1749154238960,-725.37,0.00023322,2]
[364591862,1749154238971,-1295.23,0.00023322,2]
[364591863,1749154238982,-472.91,0.00023322,2]
[364591864,1749154238991,-756.85,0.00023322,2]
[364591865,1749154239001,-1789.51274162,0.00023348,9]
[364591866,1749154239010,-216.9712955,0.00023425,2]